[Event "Live Chess"]
[Site "Chess.com"]
[Date "2024.06.02"]
[Round "-"]
[White "TheSmoulderingMaster"]
[Black "E2E4colchester"]
[Result "1-0"]
[WhiteElo "1771"]
[BlackElo "1173"]
[TimeControl "300"]
[EndTime "7:32:35 PDT"]
[Termination "TheSmoulderingMaster won by checkmate"]

1. e4 {[%clk 0:04:56.3]} 1... c5 {[%clk 0:04:58.7]} 2. Nf3 {[%clk 0:04:54.9]}
2... Nc6 {[%clk 0:04:57.5]} 3. d4 {[%clk 0:04:54.1]} 3... cxd4 {[%clk
0:04:55.3]} 4. Nxd4 {[%clk 0:04:53.1]} 4... Nxd4 {[%clk 0:04:53.7]} 5. Qxd4
{[%clk 0:04:51.4]} 5... e6 {[%clk 0:04:50.8]} 6. Nc3 {[%clk 0:04:50.2]} 6... Be7
{[%clk 0:04:38.2]} 7. Qxg7 {[%clk 0:04:46.2]} 7... Bf6 {[%clk 0:04:33.6]} 8. Qg3
{[%clk 0:04:45.2]} 8... Ne7 {[%clk 0:04:15.8]} 9. e5 {[%clk 0:04:41.9]} 9... Nf5
{[%clk 0:04:00.4]} 10. Qf4 {[%clk 0:04:35.7]} 10... Bg7 {[%clk 0:03:59.2]} 11.
Bd3 {[%clk 0:04:31.7]} 11... d5 {[%clk 0:03:54.2]} 12. Bxf5 {[%clk 0:04:22.5]}
12... exf5 {[%clk 0:03:46.9]} 13. Be3 {[%clk 0:04:18.3]} 13... Be6 {[%clk
0:03:42.3]} 14. O-O-O {[%clk 0:04:15.1]} 14... O-O {[%clk 0:03:40.9]} 15. h3
{[%clk 0:04:09.7]} 15... Rc8 {[%clk 0:03:29.4]} 16. g4 {[%clk 0:04:07.7]} 16...
Qd7 {[%clk 0:03:25.4]} 17. gxf5 {[%clk 0:04:03.5]} 17... Bxf5 {[%clk 0:03:24.1]}
18. Nxd5 {[%clk 0:04:02]} 18... Rxc2+ {[%clk 0:03:18.2]} 19. Kb1 {[%clk
0:04:00.1]} 19... Rxf2+ {[%clk 0:03:13.9]} 20. Ka1 {[%clk 0:03:58.4]} 20... Rxf4
{[%clk 0:03:12.3]} 21. Nxf4 {[%clk 0:03:55.4]} 21... Qb5 {[%clk 0:03:01.7]} 22.
Rhg1 {[%clk 0:03:52.3]} 22... Qxe5 {[%clk 0:02:56.9]} 23. Bd4 {[%clk 0:03:47.3]}
23... Qe4 {[%clk 0:02:22.1]} 24. Rxg7+ {[%clk 0:03:44]} 24... Kh8 {[%clk
0:02:21.1]} 25. Rxf7+ {[%clk 0:03:32.3]} 25... Kg8 {[%clk 0:02:17.1]} 26. Rg7+
{[%clk 0:03:30.1]} 26... Kh8 {[%clk 0:02:10.5]} 27. Rxb7+ {[%clk 0:03:13.5]}
27... Kg8 {[%clk 0:01:49.5]} 28. Rg1+ {[%clk 0:03:07.8]} 28... Bg6 {[%clk
0:01:45.8]} 29. Rg7+ {[%clk 0:03:02.1]} 29... Kh8 {[%clk 0:01:39.5]} 30. Nxg6+
{[%clk 0:02:59.6]} 30... hxg6 {[%clk 0:01:33.8]} 31. Rd7+ {[%clk 0:02:49.7]}
31... Kg8 {[%clk 0:01:25.7]} 32. Rg7+ {[%clk 0:02:47.5]} 32... Kh8 {[%clk
0:01:23.9]} 33. R7xg6+ {[%clk 0:02:43.8]} 33... Kh7 {[%clk 0:01:22.4]} 34. Rg7+
{[%clk 0:02:38.4]} 34... Kh6 {[%clk 0:01:16]} 35. R1g6+ {[%clk 0:02:32.3]} 35...
Qxg6 {[%clk 0:01:11.5]} 36. Rxg6+ {[%clk 0:02:30]} 36... Kxg6 {[%clk 0:01:10.5]}
37. b4 {[%clk 0:02:21.2]} 37... Rh8 {[%clk 0:01:08]} 38. Bxh8 {[%clk 0:02:18.4]}
38... Kh5 {[%clk 0:01:06.6]} 39. Bf6 {[%clk 0:02:15.2]} 39... Kg6 {[%clk
0:01:04.4]} 40. Bd8 {[%clk 0:02:12.1]} 40... Kh5 {[%clk 0:01:01.9]} 41. h4
{[%clk 0:02:11]} 41... a6 {[%clk 0:00:59.3]} 42. Kb2 {[%clk 0:02:10]} 42... Kg6
{[%clk 0:00:57.9]} 43. Ka3 {[%clk 0:02:09.2]} 43... Kf7 {[%clk 0:00:56.9]} 44.
Ka4 {[%clk 0:02:08.5]} 44... Ke8 {[%clk 0:00:55.8]} 45. Bg5 {[%clk 0:02:07.5]}
45... Kf7 {[%clk 0:00:53.8]} 46. Ka5 {[%clk 0:02:06.8]} 46... Kg6 {[%clk
0:00:53.2]} 47. Kxa6 {[%clk 0:02:05.8]} 47... Kf5 {[%clk 0:00:52.5]} 48. a4
{[%clk 0:02:05.1]} 48... Kg6 {[%clk 0:00:51.8]} 49. Kb6 {[%clk 0:02:04.4]} 49...
Kh5 {[%clk 0:00:51.1]} 50. a5 {[%clk 0:02:04]} 50... Kg6 {[%clk 0:00:50.4]} 51.
Kc6 {[%clk 0:02:03.5]} 51... Kh5 {[%clk 0:00:49.8]} 52. b5 {[%clk 0:02:03.4]}
52... Kg6 {[%clk 0:00:49.1]} 53. a6 {[%clk 0:02:03.3]} 53... Kh5 {[%clk
0:00:48.6]} 54. b6 {[%clk 0:02:03.2]} 54... Kg6 {[%clk 0:00:48.1]} 55. a7 {[%clk
0:02:03.1]} 55... Kh5 {[%clk 0:00:47.5]} 56. b7 {[%clk 0:02:03]} 56... Kg6
{[%clk 0:00:46.8]} 57. a8=Q {[%clk 0:02:02.9]} 57... Kh5 {[%clk 0:00:45.9]} 58.
b8=Q {[%clk 0:02:02.2]} 58... Kg6 {[%clk 0:00:44.7]} 59. Qg8+ {[%clk 0:02:00.9]}
59... Kh5 {[%clk 0:00:43.5]} 60. Qae8+ {[%clk 0:01:56.4]} 60... Kg4 {[%clk
0:00:42.4]} 61. Qge6+ {[%clk 0:01:54.9]} 61... Kg3 {[%clk 0:00:39.4]} 62. Qe3+
{[%clk 0:01:52.4]} 62... Kg2 {[%clk 0:00:36.9]} 63. Q8e4+ {[%clk 0:01:49.6]}
63... Kh2 {[%clk 0:00:35.5]} 64. Bf4# {[%clk 0:01:47.8]} 1-0

[Event "Live Chess"]
[Site "Chess.com"]
[Date "2024.06.02"]
[Round "-"]
[White "Purple1szed"]
[Black "gmnorfolk"]
[Result "1-0"]
[WhiteElo "2013"]
[BlackElo "2143"]
[TimeControl "300"]
[EndTime "7:32:37 PDT"]
[Termination "Purple1szed won by resignation"]

1. e4 {[%clk 0:04:58.3]} 1... c5 {[%clk 0:04:58.9]} 2. c3 {[%clk 0:04:57.7]}
2... d5 {[%clk 0:04:57.4]} 3. exd5 {[%clk 0:04:57]} 3... Qxd5 {[%clk 0:04:56.9]}
4. d4 {[%clk 0:04:56.9]} 4... Nc6 {[%clk 0:04:55.9]} 5. Nf3 {[%clk 0:04:55.5]}
5... Bg4 {[%clk 0:04:55.5]} 6. Be2 {[%clk 0:04:55.2]} 6... cxd4 {[%clk
0:04:50.2]} 7. cxd4 {[%clk 0:04:54.1]} 7... e6 {[%clk 0:04:49.8]} 8. Nc3 {[%clk
0:04:52.2]} 8... Qa5 {[%clk 0:04:48.6]} 9. O-O {[%clk 0:04:51.9]} 9... Nf6
{[%clk 0:04:47.9]} 10. Be3 {[%clk 0:04:50.9]} 10... Bd6 {[%clk 0:04:46.3]} 11.
h3 {[%clk 0:04:50.4]} 11... Bh5 {[%clk 0:04:45]} 12. Rc1 {[%clk 0:04:50.1]}
12... O-O {[%clk 0:04:43]} 13. a3 {[%clk 0:04:49.8]} 13... Rfd8 {[%clk
0:04:40.1]} 14. b4 {[%clk 0:04:49.2]} 14... Qb6 {[%clk 0:04:35.5]} 15. d5 {[%clk
0:04:45.1]} 15... Nxd5 {[%clk 0:04:33.3]} 16. Bxb6 {[%clk 0:04:44.3]} 16... Nxc3
{[%clk 0:04:30]} 17. Rxc3 {[%clk 0:04:41.6]} 17... Bh2+ {[%clk 0:04:23.6]} 18.
Nxh2 {[%clk 0:04:37.3]} 18... Rxd1 {[%clk 0:04:23.5]} 19. Bxd1 {[%clk
0:04:36.2]} 19... Bxd1 {[%clk 0:04:20.7]} 20. Rxd1 {[%clk 0:04:36.1]} 20... axb6
{[%clk 0:04:18.7]} 21. Nf3 {[%clk 0:04:35.7]} 1-0

[Event "Live Chess"]
[Site "Chess.com"]
[Date "2024.06.02"]
[Round "-"]
[White "ClassyChameleon"]
[Black "FMOlexandrProhorov"]
[Result "0-1"]
[WhiteElo "1535"]
[BlackElo "2337"]
[TimeControl "300"]
[EndTime "7:32:40 PDT"]
[Termination "FMOlexandrProhorov won by checkmate"]

1. e4 {[%clk 0:04:58.8]} 1... c5 {[%clk 0:04:58.3]} 2. Nf3 {[%clk 0:04:58.3]}
2... e6 {[%clk 0:04:58.2]} 3. d4 {[%clk 0:04:57.9]} 3... cxd4 {[%clk 0:04:57.7]}
4. Nxd4 {[%clk 0:04:57.1]} 4... Qb6 {[%clk 0:04:57.6]} 5. c3 {[%clk 0:04:54.4]}
5... Bc5 {[%clk 0:04:56]} 6. Be3 {[%clk 0:04:53.5]} 6... Qxb2 {[%clk 0:04:46.2]}
7. Nd2 {[%clk 0:04:39.3]} 7... Nc6 {[%clk 0:04:36.6]} 8. Nxc6 {[%clk 0:04:36.6]}
8... Bxe3 {[%clk 0:04:33.1]} 9. fxe3 {[%clk 0:04:30.3]} 9... bxc6 {[%clk
0:04:30.6]} 10. Bc4 {[%clk 0:04:25.1]} 10... Qxc3 {[%clk 0:04:28.2]} 11. O-O
{[%clk 0:04:22.1]} 11... Qxe3+ {[%clk 0:04:27.1]} 12. Kh1 {[%clk 0:04:20.1]}
12... Nf6 {[%clk 0:04:26.7]} 13. Re1 {[%clk 0:04:06.8]} 13... Qg5 {[%clk
0:04:23.4]} 14. Nf3 {[%clk 0:04:01.7]} 14... Qh5 {[%clk 0:04:13.1]} 15. Qd6
{[%clk 0:03:53.2]} 15... Qa5 {[%clk 0:03:45]} 16. e5 {[%clk 0:03:43.3]} 16...
Nd5 {[%clk 0:03:36.3]} 17. Ng5 {[%clk 0:03:27.2]} 17... Qb4 {[%clk 0:03:28.3]}
18. Qxb4 {[%clk 0:02:56.9]} 18... Nxb4 {[%clk 0:03:25.6]} 19. Rf1 {[%clk
0:02:54.4]} 19... O-O {[%clk 0:03:22.1]} 20. Rac1 {[%clk 0:02:42.6]} 20... Ba6
{[%clk 0:03:18.4]} 21. a3 {[%clk 0:02:36.9]} 21... Bxc4 {[%clk 0:03:16.7]} 22.
Rxc4 {[%clk 0:02:35]} 22... Nd5 {[%clk 0:03:16.6]} 23. Rh4 {[%clk 0:02:17.7]}
23... h6 {[%clk 0:02:33]} 24. Ne4 {[%clk 0:02:14.3]} 24... Rab8 {[%clk
0:02:30.8]} 25. Nd6 {[%clk 0:02:09.4]} 25... Rb2 {[%clk 0:02:28.6]} 26. h3
{[%clk 0:01:56.2]} 26... Ne3 {[%clk 0:02:24.2]} 27. Rg1 {[%clk 0:01:42.3]} 27...
Nf5 {[%clk 0:02:18.4]} 28. Ra4 {[%clk 0:01:39.6]} 28... Nxd6 {[%clk 0:02:14.6]}
29. exd6 {[%clk 0:01:38.7]} 29... Rb7 {[%clk 0:02:13.8]} 30. Rf1 {[%clk
0:01:28]} 30... f5 {[%clk 0:02:12.3]} 31. Rff4 {[%clk 0:01:16.9]} 31... e5
{[%clk 0:02:11]} 32. Rf1 {[%clk 0:01:09.5]} 32... g6 {[%clk 0:02:08.1]} 33. Rd1
{[%clk 0:01:03.4]} 33... Kf7 {[%clk 0:02:06.8]} 34. g3 {[%clk 0:00:58.8]} 34...
Ke6 {[%clk 0:02:05.5]} 35. Kg2 {[%clk 0:00:58.3]} 35... Rfb8 {[%clk 0:02:04.9]}
36. Kf1 {[%clk 0:00:50.6]} 36... Rb2 {[%clk 0:02:04.8]} 37. Rxa7 {[%clk
0:00:49.1]} 37... R8b3 {[%clk 0:02:03.9]} 38. a4 {[%clk 0:00:46.1]} 38... Rxg3
{[%clk 0:02:02.6]} 39. Ra8 {[%clk 0:00:41.6]} 39... Rxh3 {[%clk 0:02:01.5]} 40.
Re8+ {[%clk 0:00:40.6]} 40... Kf6 {[%clk 0:01:58.9]} 41. Re7 {[%clk 0:00:34.4]}
41... Rh1# {[%clk 0:01:57.3]} 0-1

[Event "Live Chess"]
[Site "Chess.com"]
[Date "2024.06.02"]
[Round "-"]
[White "80Times"]
[Black "r0ad_t0-gm"]
[Result "1-0"]
[WhiteElo "1900"]
[BlackElo "2253"]
[TimeControl "300"]
[EndTime "7:32:57 PDT"]
[Termination "80Times won by checkmate"]

1. e4 {[%clk 0:04:56.9]} 1... Nf6 {[%clk 0:04:59.9]} 2. e5 {[%clk 0:04:55.8]}
2... Nd5 {[%clk 0:04:58.8]} 3. c4 {[%clk 0:04:54.9]} 3... Nb6 {[%clk 0:04:58.7]}
4. d4 {[%clk 0:04:54.4]} 4... d6 {[%clk 0:04:58.6]} 5. f4 {[%clk 0:04:54]} 5...
dxe5 {[%clk 0:04:57.4]} 6. fxe5 {[%clk 0:04:53.9]} 6... Nc6 {[%clk 0:04:55.6]}
7. Be3 {[%clk 0:04:53]} 7... Bf5 {[%clk 0:04:54.7]} 8. Nc3 {[%clk 0:04:51]} 8...
e6 {[%clk 0:04:54]} 9. Nf3 {[%clk 0:04:48.4]} 9... Bb4 {[%clk 0:04:53.2]} 10.
Be2 {[%clk 0:04:45.7]} 10... O-O {[%clk 0:04:51.7]} 11. O-O {[%clk 0:04:42.7]}
11... Na5 {[%clk 0:04:50.8]} 12. Nd2 {[%clk 0:04:39.2]} 12... Qd7 {[%clk
0:04:41.2]} 13. g4 {[%clk 0:04:31.1]} 13... Bg6 {[%clk 0:04:40.1]} 14. h4 {[%clk
0:04:30.6]} 14... f6 {[%clk 0:04:31.4]} 15. h5 {[%clk 0:04:28.3]} 15... Be8
{[%clk 0:04:29.5]} 16. exf6 {[%clk 0:04:25.9]} 16... Rxf6 {[%clk 0:04:28.4]} 17.
Rxf6 {[%clk 0:04:24.5]} 17... gxf6 {[%clk 0:04:28.3]} 18. Bd3 {[%clk 0:04:22.2]}
18... e5 {[%clk 0:04:23.7]} 19. Bf5 {[%clk 0:04:14.7]} 19... Qe7 {[%clk
0:04:15.8]} 20. d5 {[%clk 0:03:56.6]} 20... Naxc4 {[%clk 0:04:12.2]} 21. Be6+
{[%clk 0:03:51.4]} 21... Bf7 {[%clk 0:04:10.5]} 22. Bxb6 {[%clk 0:03:41]} 22...
Nxb6 {[%clk 0:04:07.6]} 23. Nde4 {[%clk 0:03:37]} 23... Bxe6 {[%clk 0:04:03.9]}
24. dxe6 {[%clk 0:03:34.2]} 24... Qxe6 {[%clk 0:04:03.8]} 25. Qf3 {[%clk
0:03:32.1]} 25... Rf8 {[%clk 0:03:59.9]} 26. Rf1 {[%clk 0:03:29.7]} 26... Kg7
{[%clk 0:03:58.1]} 27. h6+ {[%clk 0:03:22.3]} 27... Kxh6 {[%clk 0:03:38.8]} 28.
Nxf6 {[%clk 0:03:17.2]} 28... Kg6 {[%clk 0:03:31.2]} 29. Qe4+ {[%clk 0:03:13.3]}
29... Kg7 {[%clk 0:03:22.2]} 30. Qxh7# {[%clk 0:03:10.8]} 1-0

[Event "Live Chess"]
[Site "Chess.com"]
[Date "2024.06.02"]
[Round "-"]
[White "WorcesterYork"]
[Black "agamilewska"]
[Result "1-0"]
[WhiteElo "2452"]
[BlackElo "1766"]
[TimeControl "300"]
[EndTime "7:33:01 PDT"]
[Termination "WorcesterYork won by resignation"]

1. e4 {[%clk 0:04:58.3]} 1... e5 {[%clk 0:04:58.5]} 2. Nf3 {[%clk 0:04:56]} 2...
Nc6 {[%clk 0:04:56.3]} 3. Bc4 {[%clk 0:04:55.2]} 3... h6 {[%clk 0:04:54.6]} 4.
c3 {[%clk 0:04:53.5]} 4... Nf6 {[%clk 0:04:53.3]} 5. Qe2 {[%clk 0:04:51.7]} 5...
Be7 {[%clk 0:04:50.5]} 6. d4 {[%clk 0:04:50.7]} 6... exd4 {[%clk 0:04:47]} 7.
cxd4 {[%clk 0:04:49.8]} 7... O-O {[%clk 0:04:44.7]} 8. e5 {[%clk 0:04:47.1]}
8... Bb4+ {[%clk 0:04:42.2]} 9. Nc3 {[%clk 0:04:44.8]} 9... Bxc3+ {[%clk
0:04:41.2]} 10. bxc3 {[%clk 0:04:43.7]} 10... Re8 {[%clk 0:04:40.7]} 11. O-O
{[%clk 0:04:38.4]} 11... d5 {[%clk 0:04:39.3]} 12. Bd3 {[%clk 0:04:36.4]} 12...
Bg4 {[%clk 0:04:28.2]} 13. h3 {[%clk 0:04:35.2]} 13... Bh5 {[%clk 0:04:21]} 14.
Qe3 {[%clk 0:04:29.4]} 14... Nd7 {[%clk 0:03:53.1]} 15. Qf4 {[%clk 0:04:21]}
15... Bxf3 {[%clk 0:03:48.6]} 16. Qxf3 {[%clk 0:04:20.1]} 16... Nf8 {[%clk
0:03:28.6]} 17. Rb1 {[%clk 0:04:16.2]} 17... Ng6 {[%clk 0:03:27.3]} 18. Rxb7
{[%clk 0:04:14.2]} 18... Qc8 {[%clk 0:03:07.7]} 19. Rb1 {[%clk 0:04:11.2]} 19...
Qe6 {[%clk 0:02:04.2]} 20. Qg3 {[%clk 0:04:03.8]} 20... Kh7 {[%clk 0:01:59.6]}
21. f4 {[%clk 0:04:02.1]} 21... Kh8 {[%clk 0:01:53.2]} 22. f5 {[%clk 0:04:01.2]}
1-0

[Event "Live Chess"]
[Site "Chess.com"]
[Date "2024.06.02"]
[Round "-"]
[White "joellloyd"]
[Black "Grace6363"]
[Result "1-0"]
[WhiteElo "1895"]
[BlackElo "1129"]
[TimeControl "300"]
[EndTime "7:33:04 PDT"]
[Termination "joellloyd won by checkmate"]

1. e4 {[%clk 0:04:57.9]} 1... c5 {[%clk 0:04:59]} 2. d4 {[%clk 0:04:57.2]} 2...
cxd4 {[%clk 0:04:57.5]} 3. c3 {[%clk 0:04:56.1]} 3... dxc3 {[%clk 0:04:56.6]} 4.
Nxc3 {[%clk 0:04:56]} 4... Nc6 {[%clk 0:04:56.3]} 5. Nf3 {[%clk 0:04:55.5]} 5...
g6 {[%clk 0:04:56.2]} 6. Bc4 {[%clk 0:04:54.7]} 6... Bg7 {[%clk 0:04:55.9]} 7.
e5 {[%clk 0:04:53.9]} 7... e6 {[%clk 0:04:55.8]} 8. Bf4 {[%clk 0:04:51.9]} 8...
d5 {[%clk 0:04:54.8]} 9. exd6 {[%clk 0:04:48.3]} 9... Bxc3+ {[%clk 0:04:54]} 10.
bxc3 {[%clk 0:04:46.2]} 10... e5 {[%clk 0:04:51.8]} 11. Nxe5 {[%clk 0:04:42.3]}
11... Qa5 {[%clk 0:04:41.9]} 12. O-O {[%clk 0:04:32.7]} 12... Qxc3 {[%clk
0:04:38]} 13. d7+ {[%clk 0:04:20.3]} 13... Ke7 {[%clk 0:04:26.5]} 14. dxc8=Q
{[%clk 0:04:07.6]} 14... Rxc8 {[%clk 0:04:25.5]} 15. Qd7+ {[%clk 0:04:05.5]}
15... Kf6 {[%clk 0:04:24.1]} 16. Qxf7# {[%clk 0:04:03.2]} 1-0

[Event "Live Chess"]
[Site "Chess.com"]
[Date "2024.06.02"]
[Round "-"]
[White "Queensandpawns"]
[Black "CarmelJane"]
[Result "0-1"]
[WhiteElo "2264"]
[BlackElo "2024"]
[TimeControl "300"]
[EndTime "7:33:09 PDT"]
[Termination "CarmelJane won by resignation"]

1. e4 {[%clk 0:04:59.5]} 1... g6 {[%clk 0:04:56.9]} 2. Nc3 {[%clk 0:04:57.2]}
2... Bg7 {[%clk 0:04:56.4]} 3. d4 {[%clk 0:04:57.1]} 3... c5 {[%clk 0:04:55.6]}
4. Be3 {[%clk 0:04:57]} 4... cxd4 {[%clk 0:04:52.3]} 5. Bxd4 {[%clk 0:04:56.9]}
5... Nf6 {[%clk 0:04:51.5]} 6. e5 {[%clk 0:04:54.8]} 6... Nh5 {[%clk 0:04:50.6]}
7. e6 {[%clk 0:04:54.1]} 7... Bxd4 {[%clk 0:04:48.6]} 8. Qxd4 {[%clk 0:04:54]}
8... O-O {[%clk 0:04:41.6]} 9. exf7+ {[%clk 0:04:52.8]} 9... Rxf7 {[%clk
0:04:41]} 10. Bc4 {[%clk 0:04:50.7]} 10... e6 {[%clk 0:04:39.6]} 11. Bxe6 {[%clk
0:04:49.6]} 11... Qe7 {[%clk 0:04:33.2]} 12. O-O-O {[%clk 0:04:46]} 12... Qxe6
{[%clk 0:04:24.7]} 13. Nf3 {[%clk 0:04:45.9]} 13... Nc6 {[%clk 0:04:23.3]} 14.
Qh4 {[%clk 0:04:42.9]} 14... Rf4 {[%clk 0:04:05.8]} 15. Qg5 {[%clk 0:04:40.5]}
15... Rf5 {[%clk 0:03:31.5]} 16. Qh6 {[%clk 0:04:30.4]} 16... Qf6 {[%clk
0:03:29.7]} 17. Rhe1 {[%clk 0:04:24.5]} 17... Qf8 {[%clk 0:03:17.4]} 18. Qe3
{[%clk 0:04:18.6]} 18... Nf4 {[%clk 0:03:10.9]} 19. Ne4 {[%clk 0:04:10.9]} 19...
d5 {[%clk 0:03:08.5]} 20. Ng3 {[%clk 0:03:55.2]} 20... Nxg2 {[%clk 0:03:05.6]}
21. Qb3 {[%clk 0:03:50.2]} 21... Rxf3 {[%clk 0:02:44.6]} 22. Qxd5+ {[%clk
0:03:44.8]} 22... Kg7 {[%clk 0:02:43.6]} 23. b4 {[%clk 0:02:50]} 23... Nxe1
{[%clk 0:02:38.7]} 24. b5 {[%clk 0:02:47.8]} 24... Ne7 {[%clk 0:02:08.8]} 25.
Qg5 {[%clk 0:02:37.5]} 25... Qf4+ {[%clk 0:01:56.2]} 0-1

[Event "Live Chess"]
[Site "Chess.com"]
[Date "2024.06.02"]
[Round "-"]
[White "Pandreq"]
[Black "gobbles19"]
[Result "0-1"]
[WhiteElo "1237"]
[BlackElo "2208"]
[TimeControl "300"]
[EndTime "7:33:25 PDT"]
[Termination "gobbles19 won on time"]

1. d4 {[%clk 0:04:56.2]} 1... Nf6 {[%clk 0:04:58.9]} 2. c4 {[%clk 0:04:55.1]}
2... e6 {[%clk 0:04:56.2]} 3. a3 {[%clk 0:04:53.4]} 3... c5 {[%clk 0:04:52.4]}
4. d5 {[%clk 0:04:51.6]} 4... exd5 {[%clk 0:04:51.2]} 5. cxd5 {[%clk 0:04:50.7]}
5... d6 {[%clk 0:04:50.8]} 6. Nc3 {[%clk 0:04:49.9]} 6... g6 {[%clk 0:04:50.4]}
7. Bd2 {[%clk 0:04:46.1]} 7... Bg7 {[%clk 0:04:49.5]} 8. Nf3 {[%clk 0:04:44.1]}
8... O-O {[%clk 0:04:48.1]} 9. e4 {[%clk 0:04:26.7]} 9... Re8 {[%clk 0:04:44.9]}
10. Qc2 {[%clk 0:04:24.2]} 10... Bg4 {[%clk 0:04:40.5]} 11. Be2 {[%clk
0:04:21.7]} 11... Nbd7 {[%clk 0:04:38.3]} 12. h3 {[%clk 0:04:19.5]} 12... Bxf3
{[%clk 0:04:36.9]} 13. Bxf3 {[%clk 0:04:18.6]} 13... Ne5 {[%clk 0:04:36.6]} 14.
Qd1 {[%clk 0:04:13.3]} 14... Nd3+ {[%clk 0:04:35.1]} 15. Kf1 {[%clk 0:04:07.1]}
15... Nxb2 {[%clk 0:04:30.3]} 16. Qb3 {[%clk 0:04:04.1]} 16... Nd3 {[%clk
0:04:25.6]} 17. Qxb7 {[%clk 0:04:00.2]} 17... Rb8 {[%clk 0:04:23.7]} 18. Qxa7
{[%clk 0:03:57.8]} 18... Rb2 {[%clk 0:04:22.6]} 19. Be3 {[%clk 0:03:47.6]} 19...
Nd7 {[%clk 0:04:11.7]} 20. Qa6 {[%clk 0:03:38]} 20... N3e5 {[%clk 0:04:03.3]}
21. Be2 {[%clk 0:03:27]} 21... Rb6 {[%clk 0:03:49.5]} 22. Qa4 {[%clk 0:03:18.9]}
22... Nd3 {[%clk 0:03:41.8]} 23. Bxd3 {[%clk 0:03:04.4]} 23... Bxc3 {[%clk
0:03:40.8]} 24. Rc1 {[%clk 0:03:01.3]} 24... Bg7 {[%clk 0:03:29.4]} 25. g3
{[%clk 0:02:52.5]} 25... Nf6 {[%clk 0:03:25.4]} 26. Kg2 {[%clk 0:02:50.9]} 26...
Qe7 {[%clk 0:03:18.9]} 27. f3 {[%clk 0:02:45.1]} 27... Nxd5 {[%clk 0:03:15.9]}
28. Bxc5 {[%clk 0:02:23.6]} 28... Rb2+ {[%clk 0:02:58.8]} 29. Bf2 {[%clk
0:02:15.1]} 29... Nb6 {[%clk 0:02:07.8]} 30. Qd1 {[%clk 0:01:53.5]} 30... Rb8
{[%clk 0:01:32.4]} 31. a4 {[%clk 0:01:33.7]} 31... Qe5 {[%clk 0:01:00.2]} 32.
Bb5 {[%clk 0:01:18.9]} 32... h5 {[%clk 0:00:52.4]} 33. Re1 {[%clk 0:01:03.1]}
33... h4 {[%clk 0:00:38.7]} 34. Re2 {[%clk 0:00:39.5]} 34... hxg3 {[%clk
0:00:29]} 35. Bxg3 {[%clk 0:00:38.4]} 35... Qg5 {[%clk 0:00:23.3]} 36. Rxb2
{[%clk 0:00:32.7]} 36... Bxb2 {[%clk 0:00:23.2]} 37. Rc6 {[%clk 0:00:20.6]}
37... Be5 {[%clk 0:00:20.2]} 38. Qe1 {[%clk 0:00:14.9]} 38... Nxa4 {[%clk
0:00:17.5]} 39. Bxa4 {[%clk 0:00:12.9]} 39... Rb2+ {[%clk 0:00:16.8]} 40. Kf1
{[%clk 0:00:10]} 40... Bxg3 {[%clk 0:00:15]} 41. Rc8+ {[%clk 0:00:07]} 41... Kh7
{[%clk 0:00:14.3]} 42. Qc3 {[%clk 0:00:01.6]} 42... Rb1+ {[%clk 0:00:12.3]} 43.
Ke2 {[%clk 0:00:00.6]} 43... Be5 {[%clk 0:00:10.7]} 0-1

[Event "Live Chess"]
[Site "Chess.com"]
[Date "2024.06.02"]
[Round "-"]
[White "gunslinger222"]
[Black "degringolade64"]
[Result "1/2-1/2"]
[WhiteElo "2273"]
[BlackElo "2085"]
[TimeControl "300"]
[EndTime "7:33:29 PDT"]
[Termination "Game drawn by agreement"]

1. d4 {[%clk 0:04:57.6]} 1... Nf6 {[%clk 0:04:57.6]} 2. c4 {[%clk 0:04:56.8]}
2... e6 {[%clk 0:04:56.4]} 3. Nc3 {[%clk 0:04:55.7]} 3... Bb4 {[%clk 0:04:55.3]}
4. e3 {[%clk 0:04:55.4]} 4... O-O {[%clk 0:04:53.4]} 5. Bd3 {[%clk 0:04:54.6]}
5... d5 {[%clk 0:04:52.1]} 6. Ne2 {[%clk 0:04:54.1]} 6... dxc4 {[%clk
0:04:45.5]} 7. Bxc4 {[%clk 0:04:54]} 7... c5 {[%clk 0:04:44.3]} 8. a3 {[%clk
0:04:53.3]} 8... Bxc3+ {[%clk 0:04:40.5]} 9. bxc3 {[%clk 0:04:53.2]} 9... Qc7
{[%clk 0:04:36.4]} 10. Ba2 {[%clk 0:04:51.8]} 10... Nc6 {[%clk 0:04:26.7]} 11.
f3 {[%clk 0:04:46.5]} 11... Rd8 {[%clk 0:04:01.5]} 12. O-O {[%clk 0:04:45.4]}
12... b6 {[%clk 0:03:49.5]} 13. Bb2 {[%clk 0:04:25.5]} 13... Ba6 {[%clk
0:03:37.3]} 14. Qd2 {[%clk 0:04:22.8]} 14... Na5 {[%clk 0:03:34.5]} 15. Rfd1
{[%clk 0:04:05.8]} 15... Bc4 {[%clk 0:03:31.5]} 16. Ng3 {[%clk 0:03:33.2]} 16...
Bxa2 {[%clk 0:03:27.3]} 17. Rxa2 {[%clk 0:03:33.1]} 17... Nc4 {[%clk 0:03:26.1]}
18. Qe2 {[%clk 0:03:29.5]} 18... cxd4 {[%clk 0:03:21.8]} 19. cxd4 {[%clk
0:03:25.3]} 19... Nxb2 {[%clk 0:03:10.4]} 20. Rxb2 {[%clk 0:03:25.1]} 20... Rac8
{[%clk 0:03:08.9]} 21. e4 {[%clk 0:02:58.6]} 21... Qc3 {[%clk 0:03:00.4]} 22.
Rbd2 {[%clk 0:02:38.3]} 22... Qxa3 {[%clk 0:02:56.4]} 23. d5 {[%clk 0:02:35]}
23... exd5 {[%clk 0:02:55]} 24. e5 {[%clk 0:02:33.6]} 24... Qc5+ {[%clk
0:02:34.1]} 25. Kh1 {[%clk 0:02:32.1]} 25... Ne8 {[%clk 0:02:30]} 26. Nf5 {[%clk
0:02:29.3]} 26... g6 {[%clk 0:02:12.7]} 27. Nd4 {[%clk 0:02:22.7]} 27... Nc7
{[%clk 0:02:09.5]} 28. f4 {[%clk 0:02:12.2]} 28... Ne6 {[%clk 0:02:07.1]} 29. f5
{[%clk 0:02:10.2]} 29... Nxd4 {[%clk 0:02:04.3]} 30. Rxd4 {[%clk 0:02:10.1]}
30... Qc2 {[%clk 0:01:49.8]} 31. Qxc2 {[%clk 0:01:14.3]} 31... Rxc2 {[%clk
0:01:49.7]} 32. g4 {[%clk 0:01:13.7]} 32... Re2 {[%clk 0:01:22.4]} 33. Rxd5
{[%clk 0:01:09.9]} 33... Rxd5 {[%clk 0:01:19.7]} 34. Rxd5 {[%clk 0:01:09.8]}
34... gxf5 {[%clk 0:01:19]} 35. gxf5 {[%clk 0:01:08.2]} 35... Kg7 {[%clk
0:01:17]} 36. e6 {[%clk 0:00:41.3]} 36... fxe6 {[%clk 0:01:14.7]} 37. Rd7+
{[%clk 0:00:39]} 37... Kf6 {[%clk 0:01:13.3]} 38. fxe6 {[%clk 0:00:38.4]} 38...
Rxe6 {[%clk 0:01:11.4]} 39. Rxa7 {[%clk 0:00:37.4]} 39... Kg6 {[%clk 0:01:09.3]}
40. Rb7 {[%clk 0:00:35.6]} 40... Rf6 {[%clk 0:01:06.8]} 41. Kg2 {[%clk
0:00:34.7]} 41... Re6 {[%clk 0:01:04.6]} 1/2-1/2